[Event "Titled Tuesday Blitz June 6 Late 2023"]
[White "Pavlidou, Ekaterini"]
[Black "Gubajdullin, Alexei"]
[WhiteFideId "4213262"]
[BlackFideId "4141202"]
[WhiteElo "2126"]
[BlackElo "2279"]
[Result "0-1"]
[Round "2"]
[TimeControl "180+2"]
[Date "2023.06.07"]
[WhiteClock "0:01:28"]
[BlackClock "0:01:28"]
[Board "98"]

1. d4 {[%clk 0:02:59]}  d5 {[%clk 0:02:59]} 2. c4 {[%clk 0:02:59]}  c6 {[%clk 0:02:59]} 3. Nf3 {[%clk 0:02:59]}  Nf6 {[%clk 0:02:59]} 4. Nc3 {[%clk 0:02:59]}  a6 {[%clk 0:02:59]} 5. c5 {[%clk 0:02:58]}  Nbd7 {[%clk 0:02:56]} 6. e3 {[%clk 0:02:57]}  Qc7 {[%clk 0:02:54]} 7. Na4 {[%clk 0:02:49]}  e5 {[%clk 0:02:52]} 8. Qb3 {[%clk 0:02:47]}  e4 {[%clk 0:02:44]} 9. Nd2 {[%clk 0:02:45]}  g6 {[%clk 0:02:41]} 10. Nb6 {[%clk 0:02:42]}  Nxb6 {[%clk 0:02:41]} 11. cxb6 {[%clk 0:02:42]}  Qd6 {[%clk 0:02:37]} 12. a4 {[%clk 0:02:42]}  a5 {[%clk 0:02:36]} 13. f3 {[%clk 0:02:35]}  Qb4 {[%clk 0:02:33]} 14. Ra3 {[%clk 0:02:20]}  exf3 {[%clk 0:02:31]} 15. gxf3 {[%clk 0:02:19]}  Nd7 {[%clk 0:02:30]} 16. Qd3 {[%clk 0:02:09]}  Qxb6 {[%clk 0:02:27]} 17. Rb3 {[%clk 0:02:04]}  Qc7 {[%clk 0:02:27]} 18. e4 {[%clk 0:02:02]}  Bg7 {[%clk 0:02:10]} 19. exd5 {[%clk 0:01:53]}  O-O {[%clk 0:02:10]} 20. dxc6 {[%clk 0:01:48]}  bxc6 {[%clk 0:02:08]} 21. Be2 {[%clk 0:01:46]}  Ba6 {[%clk 0:02:04]} 22. Nc4 {[%clk 0:01:44]}  Rad8 {[%clk 0:01:58]} 23. Be3 {[%clk 0:01:38]}  Nc5 {[%clk 0:01:57]} 24. dxc5 {[%clk 0:01:38]}  Rxd3 {[%clk 0:01:57]} 25. Bxd3 {[%clk 0:01:38]}  Qe7 {[%clk 0:01:32]} 26. Kf2 {[%clk 0:01:33]}  Bxc4 {[%clk 0:01:29]} 27. Bxc4 {[%clk 0:01:28]}  Qh4+ {[%clk 0:01:28]} 0-1


[Site "https://www.chess.com"]

[Event "Titled Tuesday Blitz June 6 Late 2023"]
[White "Spichkin, Alexander"]
[Black "Kuzhilniy, Oleksandr"]
[WhiteFideId "4144074"]
[BlackFideId "34110500"]
[WhiteElo "1986"]
[BlackElo "2074"]
[Result "0-1"]
[Round "2"]
[TimeControl "180+2"]
[Date "2023.06.07"]
[WhiteClock "0:00:56"]
[BlackClock "0:00:15"]
[Board "99"]

1. f4 {[%clk 0:03:00]}  f5 {[%clk 0:02:58]} 2. e4 {[%clk 0:03:00]}  d6 {[%clk 0:02:53]} 3. Bc4 {[%clk 0:02:51]}  g6 {[%clk 0:02:46]} 4. Nc3 {[%clk 0:02:40]}  Bg7 {[%clk 0:02:43]} 5. Nf3 {[%clk 0:02:36]}  Nh6 {[%clk 0:02:34]} 6. Ng5 {[%clk 0:02:34]}  c6 {[%clk 0:02:25]} 7. Ne6 {[%clk 0:02:28]}  Bxe6 {[%clk 0:02:23]} 8. Bxe6 {[%clk 0:02:28]}  Qa5 {[%clk 0:01:53]} 9. a3 {[%clk 0:02:15]}  Bxc3 {[%clk 0:01:38]} 10. dxc3 {[%clk 0:02:15]}  fxe4 {[%clk 0:01:38]} 11. g4 {[%clk 0:02:08]}  Nd7 {[%clk 0:01:22]} 12. f5 {[%clk 0:02:02]}  Nf7 {[%clk 0:01:22]} 13. fxg6 {[%clk 0:01:58]}  hxg6 {[%clk 0:01:18]} 14. Bxf7+ {[%clk 0:01:53]}  Kxf7 {[%clk 0:01:19]} 15. Rf1+ {[%clk 0:01:53]}  Kg7 {[%clk 0:01:16]} 16. Bf4 {[%clk 0:01:47]}  Raf8 {[%clk 0:01:07]} 17. Qd2 {[%clk 0:01:45]}  g5 {[%clk 0:00:46]} 18. Bxg5 {[%clk 0:01:31]}  Rxf1+ {[%clk 0:00:46]} 19. Kxf1 {[%clk 0:01:31]}  Ne5 {[%clk 0:00:32]} 20. Qd4 {[%clk 0:01:08]}  Rxh2 {[%clk 0:00:23]} 21. Kg1 {[%clk 0:01:08]}  Rxc2 {[%clk 0:00:20]} 22. Bxe7 {[%clk 0:01:07]}  Kf7 {[%clk 0:00:16]} 23. Qxd6 {[%clk 0:01:02]}  Nf3+ {[%clk 0:00:15]} 24. Kf1 {[%clk 0:01:01]}  Qb5+ {[%clk 0:00:14]} 25. c4 {[%clk 0:00:58]}  Qxc4+ {[%clk 0:00:14]} 26. Qd3 {[%clk 0:00:56]}  Qxd3# {[%clk 0:00:15]} 0-1


[Site "https://www.chess.com"]

[Event "Titled Tuesday Blitz June 6 Late 2023"]
[White "Herman, Daniel"]
[Black "Nakamura, Hikaru"]
[WhiteFideId "30935008"]
[BlackFideId "2016192"]
[WhiteElo "1897"]
[BlackElo "2874"]
[Result "0-1"]
[Round "2"]
[TimeControl "180+2"]
[Date "2023.06.07"]
[WhiteClock "0:00:07"]
[BlackClock "0:01:15"]
[Board "101"]

1. d4 {[%clk 0:03:00]}  g6 {[%clk 0:03:00]} 2. e4 {[%clk 0:02:59]}  d6 {[%clk 0:02:53]} 3. Bc4 {[%clk 0:02:57]}  a6 {[%clk 0:02:52]} 4. a4 {[%clk 0:02:51]}  Bg7 {[%clk 0:02:52]} 5. Nf3 {[%clk 0:02:50]}  h6 {[%clk 0:02:49]} 6. Qe2 {[%clk 0:02:47]}  Bg4 {[%clk 0:02:47]} 7. h3 {[%clk 0:02:44]}  Bxf3 {[%clk 0:02:45]} 8. Qxf3 {[%clk 0:02:45]}  e6 {[%clk 0:02:46]} 9. c3 {[%clk 0:02:43]}  Nd7 {[%clk 0:02:42]} 10. a5 {[%clk 0:02:37]}  Ne7 {[%clk 0:02:42]} 11. Be3 {[%clk 0:02:31]}  c5 {[%clk 0:02:42]} 12. Nd2 {[%clk 0:02:27]}  cxd4 {[%clk 0:02:39]} 13. cxd4 {[%clk 0:02:27]}  O-O {[%clk 0:02:38]} 14. O-O {[%clk 0:02:22]}  Nc6 {[%clk 0:02:37]} 15. Nb3 {[%clk 0:02:21]}  Rc8 {[%clk 0:02:36]} 16. Rfc1 {[%clk 0:02:05]}  e5 {[%clk 0:02:26]} 17. Qd1 {[%clk 0:01:11]}  exd4 {[%clk 0:01:54]} 18. Nxd4 {[%clk 0:01:11]}  Nf6 {[%clk 0:01:54]} 19. Nxc6 {[%clk 0:01:01]}  Rxc6 {[%clk 0:01:54]} 20. Bd5 {[%clk 0:01:00]}  Nxd5 {[%clk 0:01:46]} 21. exd5 {[%clk 0:00:51]}  Rxc1 {[%clk 0:01:46]} 22. Qxc1 {[%clk 0:00:48]}  Kh7 {[%clk 0:01:46]} 23. Qd2 {[%clk 0:00:32]}  Qd7 {[%clk 0:01:45]} 24. Rc1 {[%clk 0:00:30]}  Qb5 {[%clk 0:01:35]} 25. Bb6 {[%clk 0:00:28]}  Re8 {[%clk 0:01:32]} 26. Re1 {[%clk 0:00:24]}  Qxb2 {[%clk 0:01:31]} 27. Qd1 {[%clk 0:00:18]}  Rxe1+ {[%clk 0:01:27]} 28. Qxe1 {[%clk 0:00:19]}  Bd4 {[%clk 0:01:21]} 29. Bxd4 {[%clk 0:00:14]}  Qxd4 {[%clk 0:01:22]} 30. Qe7 {[%clk 0:00:14]}  Qxd5 {[%clk 0:01:22]} 31. Qf6 {[%clk 0:00:10]}  Qe6 {[%clk 0:01:20]} 32. Qd8 {[%clk 0:00:08]}  d5 {[%clk 0:01:14]} 33. h4 {[%clk 0:00:08]}  Qe1+ {[%clk 0:01:13]} 34. Kh2 {[%clk 0:00:08]}  Qxf2 {[%clk 0:01:14]} 35. Qxd5 {[%clk 0:00:06]}  Qxh4+ {[%clk 0:01:14]} 36. Kg1 {[%clk 0:00:07]}  Qe1+ {[%clk 0:01:15]} 37. Kh2 {[%clk 0:00:07]}  Qe7 {[%clk 0:01:16]} 38. Kg1 {[%clk 0:00:07]}  h5 {[%clk 0:01:14]} 39. Kh2 {[%clk 0:00:07]}  f6 {[%clk 0:01:15]} 40. Kg1 {[%clk 0:00:07]}  Qe1+ {[%clk 0:01:15]} 0-1


[Site "https://www.chess.com"]

[Event "Titled Tuesday Blitz June 6 Late 2023"]
[White "Chigaev, Maksim"]
[Black "Kujawski, Adam"]
[WhiteFideId "4108116"]
[BlackFideId "1100920"]
[WhiteElo "2561"]
[BlackElo "2054"]
[Result "1-0"]
[Round "2"]
[TimeControl "180+2"]
[Date "2023.06.07"]
[WhiteClock "0:01:50"]
[BlackClock "0:00:06"]
[Board "103"]

1. d4 {[%clk 0:03:00]}  Nf6 {[%clk 0:02:59]} 2. c4 {[%clk 0:03:00]}  e6 {[%clk 0:02:59]} 3. g3 {[%clk 0:03:01]}  c5 {[%clk 0:02:58]} 4. d5 {[%clk 0:02:59]}  d6 {[%clk 0:02:58]} 5. Bg2 {[%clk 0:02:59]}  exd5 {[%clk 0:02:58]} 6. cxd5 {[%clk 0:02:59]}  g6 {[%clk 0:02:58]} 7. Nc3 {[%clk 0:03:00]}  Bg7 {[%clk 0:02:59]} 8. Nf3 {[%clk 0:03:01]}  O-O {[%clk 0:02:59]} 9. O-O {[%clk 0:03:02]}  a6 {[%clk 0:02:59]} 10. a4 {[%clk 0:03:02]}  Re8 {[%clk 0:02:59]} 11. Bf4 {[%clk 0:03:02]}  Nh5 {[%clk 0:02:58]} 12. Bg5 {[%clk 0:03:01]}  Qc7 {[%clk 0:02:59]} 13. Qd2 {[%clk 0:02:58]}  Nd7 {[%clk 0:02:58]} 14. Rfc1 {[%clk 0:02:52]}  Rb8 {[%clk 0:02:51]} 15. Rab1 {[%clk 0:02:52]}  b5 {[%clk 0:01:55]} 16. axb5 {[%clk 0:02:52]}  axb5 {[%clk 0:01:55]} 17. b4 {[%clk 0:02:52]}  Ba6 {[%clk 0:00:55]} 18. bxc5 {[%clk 0:02:26]}  Nxc5 {[%clk 0:00:55]} 19. Nd4 {[%clk 0:02:23]}  b4 {[%clk 0:00:50]} 20. Na4 {[%clk 0:02:21]}  Bxd4 {[%clk 0:00:11]} 21. Qxd4 {[%clk 0:02:17]}  Bxe2 {[%clk 0:00:12]} 22. g4 {[%clk 0:01:58]}  Bxg4 {[%clk 0:00:05]} 23. Qxg4 {[%clk 0:01:50]}  Qa5 {[%clk 0:00:05]} 24. Nxc5 {[%clk 0:01:49]}  dxc5 {[%clk 0:00:06]} 25. d6 {[%clk 0:01:50]} 1-0


[Site "https://www.chess.com"]

[Event "Titled Tuesday Blitz June 6 Late 2023"]
[White "Rustemov, Alexander"]
[Black "Moore, Nicholas"]
[WhiteFideId "4119002"]
[BlackFideId "4303709"]
[WhiteElo "2847"]
[BlackElo "2425"]
[Result "1-0"]
[Round "2"]
[TimeControl "180+2"]
[Date "2023.06.07"]
[WhiteClock "0:00:10"]
[BlackClock "0:00:03"]
[Board "104"]

1. d4 {[%clk 0:03:00]}  d5 {[%clk 0:02:48]} 2. c4 {[%clk 0:03:01]}  c6 {[%clk 0:02:48]} 3. Nc3 {[%clk 0:03:01]}  Nf6 {[%clk 0:02:47]} 4. e3 {[%clk 0:03:01]}  e6 {[%clk 0:02:47]} 5. Nf3 {[%clk 0:03:01]}  Nbd7 {[%clk 0:02:47]} 6. Qc2 {[%clk 0:03:02]}  Bd6 {[%clk 0:02:47]} 7. Bd2 {[%clk 0:03:02]}  O-O {[%clk 0:02:45]} 8. O-O-O {[%clk 0:03:02]}  dxc4 {[%clk 0:02:45]} 9. Bxc4 {[%clk 0:03:02]}  b5 {[%clk 0:02:45]} 10. Bd3 {[%clk 0:03:01]}  a5 {[%clk 0:02:32]} 11. e4 {[%clk 0:02:54]}  e5 {[%clk 0:02:32]} 12. dxe5 {[%clk 0:02:49]}  Nxe5 {[%clk 0:02:32]} 13. Nxe5 {[%clk 0:02:49]}  Bxe5 {[%clk 0:02:32]} 14. f4 {[%clk 0:02:50]}  Bxc3 {[%clk 0:02:16]} 15. Bxc3 {[%clk 0:02:49]}  Bg4 {[%clk 0:02:05]} 16. Be2 {[%clk 0:02:37]}  Qc8 {[%clk 0:01:50]} 17. Bxf6 {[%clk 0:02:30]}  Bxe2 {[%clk 0:01:49]} 18. Qxe2 {[%clk 0:02:28]}  gxf6 {[%clk 0:01:50]} 19. Rd6 {[%clk 0:02:25]}  f5 {[%clk 0:01:27]} 20. Rhd1 {[%clk 0:02:06]}  Re8 {[%clk 0:01:23]} 21. e5 {[%clk 0:02:05]}  Re6 {[%clk 0:01:22]} 22. Qc2 {[%clk 0:01:49]}  Rg6 {[%clk 0:01:15]} 23. g3 {[%clk 0:01:39]}  a4 {[%clk 0:01:11]} 24. a3 {[%clk 0:01:36]}  c5 {[%clk 0:01:10]} 25. R1d5 {[%clk 0:01:24]}  b4 {[%clk 0:01:03]} 26. Rxc5 {[%clk 0:01:17]}  Qb7 {[%clk 0:01:01]} 27. axb4 {[%clk 0:01:02]}  a3 {[%clk 0:00:52]} 28. bxa3 {[%clk 0:00:55]}  Rxa3 {[%clk 0:00:46]} 29. Qb2 {[%clk 0:00:28]}  Rxd6 {[%clk 0:00:33]} 30. Qxa3 {[%clk 0:00:16]}  Qh1+ {[%clk 0:00:29]} 31. Kb2 {[%clk 0:00:17]}  Rd1 {[%clk 0:00:21]} 32. Qc3 {[%clk 0:00:11]}  Qxh2+ {[%clk 0:00:13]} 33. Ka3 {[%clk 0:00:10]}  Rd8 {[%clk 0:00:11]} 34. Rc8 {[%clk 0:00:09]}  Rxc8 {[%clk 0:00:10]} 35. Qxc8+ {[%clk 0:00:10]}  Kg7 {[%clk 0:00:10]} 36. Qc3 {[%clk 0:00:10]}  Qe2 {[%clk 0:00:09]} 37. e6+ {[%clk 0:00:09]}  Kg6 {[%clk 0:00:10]} 38. exf7 {[%clk 0:00:10]}  Kxf7 {[%clk 0:00:11]} 39. Kb3 {[%clk 0:00:08]}  Kg6 {[%clk 0:00:09]} 40. Ka3 {[%clk 0:00:04]}  Kh5 {[%clk 0:00:09]} 41. Qb3 {[%clk 0:00:04]}  Kg4 {[%clk 0:00:07]} 42. b5 {[%clk 0:00:04]}  h5 {[%clk 0:00:06]} 43. Ka4 {[%clk 0:00:04]}  Qe4+ {[%clk 0:00:05]} 44. Ka5 {[%clk 0:00:04]}  Qa8+ {[%clk 0:00:05]} 45. Kb6 {[%clk 0:00:04]}  Qb8+ {[%clk 0:00:05]} 46. Kc5 {[%clk 0:00:04]}  Qc7+ {[%clk 0:00:06]} 47. Kb4 {[%clk 0:00:04]}  Qd6+ {[%clk 0:00:07]} 48. Ka4 {[%clk 0:00:04]}  Qb6 {[%clk 0:00:06]} 49. Qd3 {[%clk 0:00:03]}  Qa7+ {[%clk 0:00:05]} 50. Kb4 {[%clk 0:00:03]}  Qe7+ {[%clk 0:00:05]} 51. Kb3 {[%clk 0:00:04]}  Qb7 {[%clk 0:00:05]} 52. Qc4 {[%clk 0:00:03]}  Qf3+ {[%clk 0:00:05]} 53. Ka4 {[%clk 0:00:03]}  Qb7 {[%clk 0:00:05]} 54. Qc6 {[%clk 0:00:03]}  Qa7+ {[%clk 0:00:05]} 55. Kb4 {[%clk 0:00:03]}  Qd4+ {[%clk 0:00:06]} 56. Ka5 {[%clk 0:00:03]}  Qa7+ {[%clk 0:00:06]} 57. Qa6 {[%clk 0:00:04]}  Qc7+ {[%clk 0:00:06]} 58. Qb6 {[%clk 0:00:04]}  Qc3+ {[%clk 0:00:06]} 59. Ka6 {[%clk 0:00:05]}  Qa3+ {[%clk 0:00:04]} 60. Qa5 {[%clk 0:00:05]}  Qd6+ {[%clk 0:00:04]} 61. b6 {[%clk 0:00:06]}  Kxg3 {[%clk 0:00:04]} 62. Qb5 {[%clk 0:00:06]}  Qb8 {[%clk 0:00:04]} 63. b7 {[%clk 0:00:06]}  h4 {[%clk 0:00:04]} 64. Qe5 {[%clk 0:00:06]}  Qf8 {[%clk 0:00:02]} 65. b8=Q {[%clk 0:00:06]}  Qa3+ {[%clk 0:00:02]} 66. Kb7 {[%clk 0:00:06]}  Qb4+ {[%clk 0:00:03]} 67. Kc8 {[%clk 0:00:07]}  Qf8+ {[%clk 0:00:03]} 68. Kd7 {[%clk 0:00:06]}  Qf7+ {[%clk 0:00:03]} 69. Qe7 {[%clk 0:00:06]}  Qd5+ {[%clk 0:00:04]} 70. Qbd6 {[%clk 0:00:07]}  Qb7+ {[%clk 0:00:04]} 71. Ke6 {[%clk 0:00:07]}  Qb3+ {[%clk 0:00:04]} 72. Kxf5 {[%clk 0:00:07]}  Qc2+ {[%clk 0:00:04]} 73. Kg5 {[%clk 0:00:08]}  h3 {[%clk 0:00:03]} 74. Qee5 {[%clk 0:00:08]}  h2 {[%clk 0:00:02]} 75. f5+ {[%clk 0:00:08]}  Kg2 {[%clk 0:00:02]} 76. Qxh2+ {[%clk 0:00:08]}  Kf1 {[%clk 0:00:03]} 77. Qh1+ {[%clk 0:00:08]}  Ke2 {[%clk 0:00:02]} 78. Qdh2+ {[%clk 0:00:09]}  Kd3 {[%clk 0:00:02]} 79. Qxc2+ {[%clk 0:00:10]}  Kxc2 {[%clk 0:00:03]} 80. f6 {[%clk 0:00:10]} 1-0


[Site "https://www.chess.com"]

[Event "Titled Tuesday Blitz June 6 Late 2023"]
[White "Arnold, Ken"]
[Black "Maksimovic, Bojan"]
[WhiteFideId "2056836"]
[BlackFideId "14408120"]
[WhiteElo "2423"]
[BlackElo "2457"]
[Result "1-0"]
[Round "2"]
[TimeControl "180+2"]
[Date "2023.06.07"]
[WhiteClock "0:00:06"]
[BlackClock "0:00:01"]
[Board "105"]

1. e4 {[%clk 0:03:00]}  g6 {[%clk 0:03:00]} 2. Nf3 {[%clk 0:03:01]}  Nf6 {[%clk 0:03:01]} 3. e5 {[%clk 0:03:01]}  Nh5 {[%clk 0:03:02]} 4. Be2 {[%clk 0:03:00]}  d6 {[%clk 0:03:02]} 5. exd6 {[%clk 0:02:59]}  cxd6 {[%clk 0:03:03]} 6. d4 {[%clk 0:02:59]}  Bg7 {[%clk 0:03:04]} 7. c3 {[%clk 0:02:57]}  O-O {[%clk 0:03:04]} 8. O-O {[%clk 0:02:56]}  e5 {[%clk 0:03:04]} 9. Bg5 {[%clk 0:02:51]}  Qc7 {[%clk 0:03:00]} 10. Nbd2 {[%clk 0:02:41]}  Nc6 {[%clk 0:03:00]} 11. Nc4 {[%clk 0:02:37]}  Nf4 {[%clk 0:02:40]} 12. Bxf4 {[%clk 0:02:34]}  exf4 {[%clk 0:02:41]} 13. a4 {[%clk 0:02:29]}  d5 {[%clk 0:02:41]} 14. Na3 {[%clk 0:02:19]}  h6 {[%clk 0:02:40]} 15. Bd3 {[%clk 0:02:12]}  Be6 {[%clk 0:02:36]} 16. Re1 {[%clk 0:02:11]}  Rae8 {[%clk 0:02:36]} 17. Qd2 {[%clk 0:02:09]}  a6 {[%clk 0:02:32]} 18. h3 {[%clk 0:02:08]}  Bc8 {[%clk 0:02:30]} 19. Nc2 {[%clk 0:02:04]}  Na5 {[%clk 0:02:29]} 20. Ra3 {[%clk 0:01:41]}  Rxe1+ {[%clk 0:02:26]} 21. Ncxe1 {[%clk 0:01:33]}  Re8 {[%clk 0:02:25]} 22. b4 {[%clk 0:01:28]}  Nc4 {[%clk 0:02:25]} 23. Bxc4 {[%clk 0:01:28]}  Qxc4 {[%clk 0:02:25]} 24. Nd3 {[%clk 0:01:24]}  g5 {[%clk 0:02:18]} 25. Nfe5 {[%clk 0:01:21]}  Qc7 {[%clk 0:02:18]} 26. Ra1 {[%clk 0:01:19]}  Bf5 {[%clk 0:02:16]} 27. a5 {[%clk 0:01:18]}  f6 {[%clk 0:02:09]} 28. Nf3 {[%clk 0:01:17]}  h5 {[%clk 0:02:09]} 29. Nc5 {[%clk 0:01:00]}  g4 {[%clk 0:01:57]} 30. Nh4 {[%clk 0:00:58]}  Bc8 {[%clk 0:01:57]} 31. Re1 {[%clk 0:00:57]}  Qd8 {[%clk 0:01:55]} 32. Rxe8+ {[%clk 0:00:51]}  Qxe8 {[%clk 0:01:55]} 33. Qxf4 {[%clk 0:00:51]}  Kh7 {[%clk 0:01:55]} 34. hxg4 {[%clk 0:00:48]}  hxg4 {[%clk 0:01:54]} 35. Nf5 {[%clk 0:00:46]}  Bf8 {[%clk 0:01:48]} 36. Qxg4 {[%clk 0:00:43]}  Bh6 {[%clk 0:01:03]} 37. Qf3 {[%clk 0:00:31]}  Bg5 {[%clk 0:00:48]} 38. Ne3 {[%clk 0:00:29]}  Kg6 {[%clk 0:00:43]} 39. g3 {[%clk 0:00:26]}  Bh3 {[%clk 0:00:42]} 40. Nd3 {[%clk 0:00:26]}  Qc8 {[%clk 0:00:27]} 41. Nf4+ {[%clk 0:00:25]}  Bxf4 {[%clk 0:00:28]} 42. gxf4 {[%clk 0:00:24]}  Bf5 {[%clk 0:00:20]} 43. Nxd5 {[%clk 0:00:21]}  Kf7 {[%clk 0:00:16]} 44. Qe3 {[%clk 0:00:19]}  Be6 {[%clk 0:00:15]} 45. Nb6 {[%clk 0:00:18]}  Qg8+ {[%clk 0:00:15]} 46. Qg3 {[%clk 0:00:17]}  Qh7 {[%clk 0:00:15]} 47. d5 {[%clk 0:00:17]}  Qb1+ {[%clk 0:00:13]} 48. Kh2 {[%clk 0:00:17]}  Bf5 {[%clk 0:00:14]} 49. Qe3 {[%clk 0:00:14]}  Be4 {[%clk 0:00:13]} 50. f3 {[%clk 0:00:14]}  Qc2+ {[%clk 0:00:14]} 51. Kg3 {[%clk 0:00:14]}  Bf5 {[%clk 0:00:14]} 52. d6 {[%clk 0:00:13]}  Qd1 {[%clk 0:00:11]} 53. Qe7+ {[%clk 0:00:12]}  Kg6 {[%clk 0:00:12]} 54. Qe8+ {[%clk 0:00:12]}  Kg7 {[%clk 0:00:12]} 55. Qe7+ {[%clk 0:00:12]}  Kg6 {[%clk 0:00:12]} 56. Qe3 {[%clk 0:00:11]}  Qxd6 {[%clk 0:00:10]} 57. Nc8 {[%clk 0:00:11]}  Qd7 {[%clk 0:00:04]} 58. Ne7+ {[%clk 0:00:10]}  Kf7 {[%clk 0:00:04]} 59. Nxf5 {[%clk 0:00:10]}  Qxf5 {[%clk 0:00:05]} 60. Qe4 {[%clk 0:00:10]}  Qd7 {[%clk 0:00:05]} 61. c4 {[%clk 0:00:10]}  Qc7 {[%clk 0:00:04]} 62. Qd5+ {[%clk 0:00:10]}  Kg6 {[%clk 0:00:03]} 63. c5 {[%clk 0:00:10]}  Qg7 {[%clk 0:00:03]} 64. Kf2 {[%clk 0:00:08]}  Qh6 {[%clk 0:00:01]} 65. f5+ {[%clk 0:00:06]} 1-0


[Site "https://www.chess.com"]

[Event "Titled Tuesday Blitz June 6 Late 2023"]
[White "Omariev, Maksim"]
[Black "Fernandez Guillen, Ernesto J."]
[WhiteFideId "4193423"]
[BlackFideId "3512428"]
[WhiteElo "2423"]
[BlackElo "2434"]
[Result "0-1"]
[Round "2"]
[TimeControl "180+2"]
[Date "2023.06.07"]
[WhiteClock "0:00:01"]
[BlackClock "0:02:06"]
[Board "106"]

1. e4 {[%clk 0:03:00]}  e5 {[%clk 0:02:59]} 2. Nf3 {[%clk 0:03:00]}  Nc6 {[%clk 0:02:57]} 3. Bb5 {[%clk 0:03:01]}  f5 {[%clk 0:02:56]} 4. d3 {[%clk 0:03:00]}  fxe4 {[%clk 0:02:49]} 5. dxe4 {[%clk 0:03:00]}  Nf6 {[%clk 0:02:50]} 6. Qd3 {[%clk 0:02:57]}  d6 {[%clk 0:02:48]} 7. O-O {[%clk 0:02:52]}  Bg4 {[%clk 0:02:48]} 8. h3 {[%clk 0:02:44]}  Bh5 {[%clk 0:02:43]} 9. Nc3 {[%clk 0:01:26]}  Be7 {[%clk 0:02:42]} 10. Ng5 {[%clk 0:01:19]}  Qd7 {[%clk 0:02:25]} 11. Nd5 {[%clk 0:00:46]}  a6 {[%clk 0:02:18]} 12. Ba4 {[%clk 0:00:36]}  b5 {[%clk 0:02:17]} 13. Bb3 {[%clk 0:00:34]}  Nd4 {[%clk 0:02:17]} 14. Re1 {[%clk 0:00:15]}  h6 {[%clk 0:02:17]} 15. Nxe7 {[%clk 0:00:04]}  Qxe7 {[%clk 0:02:16]} 16. Nf3 {[%clk 0:00:04]}  Bxf3 {[%clk 0:02:11]} 17. gxf3 {[%clk 0:00:05]}  Nh5 {[%clk 0:02:10]} 18. Kh2 {[%clk 0:00:03]}  Qh4 {[%clk 0:02:08]} 19. Rg1 {[%clk 0:00:01]}  Qxf2+ {[%clk 0:02:06]} 20. Rg2 {[%clk 0:00:01]}  Nxf3+ {[%clk 0:02:06]} 0-1


[Site "https://www.chess.com"]

[Event "Titled Tuesday Blitz June 6 Late 2023"]
[White "Cabarkapa, Novak"]
[Black "Przybylski, Wojciech"]
[WhiteFideId "943746"]
[BlackFideId "1117599"]
[WhiteElo "2404"]
[BlackElo "2228"]
[Result "0-1"]
[Round "2"]
[TimeControl "180+2"]
[Date "2023.06.07"]
[WhiteClock "0:00:02"]
[BlackClock "0:00:19"]
[Board "107"]

1. h4 {[%clk 0:03:00]}  e5 {[%clk 0:02:52]} 2. c3 {[%clk 0:03:00]}  d5 {[%clk 0:02:50]} 3. d4 {[%clk 0:03:00]}  e4 {[%clk 0:02:50]} 4. Bf4 {[%clk 0:02:57]}  Nc6 {[%clk 0:02:45]} 5. e3 {[%clk 0:02:55]}  a6 {[%clk 0:02:45]} 6. Nd2 {[%clk 0:02:54]}  h5 {[%clk 0:02:42]} 7. Be2 {[%clk 0:02:53]}  g6 {[%clk 0:02:41]} 8. f3 {[%clk 0:02:52]}  Be7 {[%clk 0:02:41]} 9. g3 {[%clk 0:02:50]}  Bf5 {[%clk 0:02:36]} 10. fxe4 {[%clk 0:02:48]}  dxe4 {[%clk 0:02:35]} 11. Nh3 {[%clk 0:02:48]}  Nf6 {[%clk 0:02:32]} 12. Nf2 {[%clk 0:02:48]}  Qd7 {[%clk 0:02:24]} 13. b4 {[%clk 0:02:43]}  b5 {[%clk 0:02:13]} 14. a4 {[%clk 0:02:41]}  Rb8 {[%clk 0:02:12]} 15. axb5 {[%clk 0:02:41]}  axb5 {[%clk 0:02:12]} 16. O-O {[%clk 0:02:41]}  Qd5 {[%clk 0:02:02]} 17. c4 {[%clk 0:02:38]}  Qd7 {[%clk 0:01:53]} 18. cxb5 {[%clk 0:02:36]}  Nxb4 {[%clk 0:01:51]} 19. Nc4 {[%clk 0:02:33]}  O-O {[%clk 0:01:46]} 20. Ne5 {[%clk 0:02:33]}  Qe8 {[%clk 0:01:36]} 21. Bc4 {[%clk 0:02:28]}  Nfd5 {[%clk 0:01:34]} 22. Bh6 {[%clk 0:02:27]}  Kh7 {[%clk 0:01:23]} 23. Bxf8 {[%clk 0:02:16]}  Bxf8 {[%clk 0:01:07]} 24. Qd2 {[%clk 0:02:09]}  f6 {[%clk 0:01:01]} 25. Nc6 {[%clk 0:02:06]}  Nxc6 {[%clk 0:01:01]} 26. Bxd5 {[%clk 0:02:03]}  Rxb5 {[%clk 0:00:58]} 27. Bc4 {[%clk 0:01:58]}  Rb4 {[%clk 0:00:57]} 28. Be2 {[%clk 0:01:49]}  Bd6 {[%clk 0:00:56]} 29. Kg2 {[%clk 0:01:44]}  Qb8 {[%clk 0:00:53]} 30. Rfc1 {[%clk 0:01:39]}  Ne7 {[%clk 0:00:51]} 31. Rc2 {[%clk 0:01:26]}  c6 {[%clk 0:00:51]} 32. Rac1 {[%clk 0:01:25]}  Bxg3 {[%clk 0:00:50]} 33. d5 {[%clk 0:01:19]}  Nxd5 {[%clk 0:00:34]} 34. Rxc6 {[%clk 0:01:15]}  Bxf2 {[%clk 0:00:33]} 35. Rc7+ {[%clk 0:00:44]}  Nxc7 {[%clk 0:00:33]} 36. Qd6 {[%clk 0:00:43]}  Ne8 {[%clk 0:00:28]} 37. Qe7+ {[%clk 0:00:40]}  Kg8 {[%clk 0:00:24]} 38. Kxf2 {[%clk 0:00:36]}  Rb2 {[%clk 0:00:21]} 39. Rh1 {[%clk 0:00:08]}  Bg4 {[%clk 0:00:20]} 40. Qxe8+ {[%clk 0:00:02]}  Qxe8 {[%clk 0:00:19]} 0-1


[Site "https://www.chess.com"]